[Event "Early-Titled-Tuesday-Blitz-December-26-2023"]
[Site "Chess.com"]
[Date "2023.12.26"]
[Round "7"]
[White "LikeWater"]
[Black "Bauman_Guy"]
[Result "0-1"]
[WhiteElo "2754"]
[BlackElo "2910"]
[TimeControl "180+1"]
[EndTime "9:17:59 PST"]
[Termination "Bauman_Guy won by resignation"]

1. e4 {[%clk 0:03:00.9]} 1... c5 {[%clk 0:03:00.2]} 2. c3 {[%clk 0:03:00.5]}
2... d5 {[%clk 0:02:59.5]} 3. exd5 {[%clk 0:03:00.7]} 3... Qxd5 {[%clk
0:03:00.4]} 4. d4 {[%clk 0:03:01.4]} 4... e6 {[%clk 0:03:00.8]} 5. Nf3 {[%clk
0:03:01.4]} 5... Nf6 {[%clk 0:03:01]} 6. Na3 {[%clk 0:03:00.6]} 6... Nc6 {[%clk
0:03:01.2]} 7. Nb5 {[%clk 0:02:55]} 7... Qd8 {[%clk 0:03:01]} 8. dxc5 {[%clk
0:02:54.3]} 8... Bxc5 {[%clk 0:03:01.9]} 9. Qxd8+ {[%clk 0:02:51.9]} 9... Kxd8
{[%clk 0:03:02.8]} 10. b4 {[%clk 0:02:47.4]} 10... Bb6 {[%clk 0:03:00.2]} 11. a4
{[%clk 0:02:39.3]} 11... Ne4 {[%clk 0:02:58.3]} 12. Be3 {[%clk 0:02:33.3]} 12...
Bxe3 {[%clk 0:02:57.9]} 13. fxe3 {[%clk 0:02:34.2]} 13... a6 {[%clk 0:02:55.3]}
14. Nbd4 {[%clk 0:02:28.5]} 14... Bd7 {[%clk 0:02:55.4]} 15. Nxc6+ {[%clk
0:02:21.3]} 15... Bxc6 {[%clk 0:02:55.3]} 16. Ne5 {[%clk 0:02:21.9]} 16... Be8
{[%clk 0:02:55.4]} 17. c4 {[%clk 0:02:03.2]} 17... a5 {[%clk 0:02:54.6]} 18. b5
{[%clk 0:01:58.4]} 18... Rc8 {[%clk 0:02:53.9]} 19. Bd3 {[%clk 0:01:55.2]} 19...
Nc5 {[%clk 0:02:52.2]} 20. Ke2 {[%clk 0:01:51.3]} 20... f6 {[%clk 0:02:49.5]}
21. Nf3 {[%clk 0:01:51.7]} 21... Ke7 {[%clk 0:02:48.9]} 22. Nd2 {[%clk
0:01:40.5]} 22... Bh5+ {[%clk 0:02:47.5]} 23. Nf3 {[%clk 0:01:39.7]} 23... e5
{[%clk 0:02:47.5]} 24. e4 {[%clk 0:01:19.7]} 24... Rhd8 {[%clk 0:02:21.3]} 25.
Rhd1 {[%clk 0:01:19.5]} 25... Bf7 {[%clk 0:02:18]} 26. Ke3 {[%clk 0:01:08.3]}
26... Nxd3 {[%clk 0:02:04]} 27. Rxd3 {[%clk 0:01:09.2]} 27... Rxd3+ {[%clk
0:02:02.4]} 28. Kxd3 {[%clk 0:01:10.1]} 28... Rxc4 {[%clk 0:02:03.3]} 29. Nd2
{[%clk 0:01:07.2]} 29... Rd4+ {[%clk 0:01:59]} 30. Ke3 {[%clk 0:00:58.7]} 30...
Kd6 {[%clk 0:01:54.4]} 31. Ra3 {[%clk 0:00:55.2]} 31... Kc7 {[%clk 0:01:16.6]}
32. Rc3+ {[%clk 0:00:44.4]} 32... Kb6 {[%clk 0:01:16.6]} 33. Rd3 {[%clk
0:00:44.2]} 33... Rxd3+ {[%clk 0:01:13.6]} 34. Kxd3 {[%clk 0:00:45.1]} 34... Kc5
{[%clk 0:01:14.5]} 35. Kc3 {[%clk 0:00:45.3]} 35... b6 {[%clk 0:01:09.3]} 36.
Nf3 {[%clk 0:00:36.6]} 36... Bh5 {[%clk 0:01:08.9]} 37. Ne1 {[%clk 0:00:32.6]}
37... Be2 {[%clk 0:01:05.4]} 38. Kd2 {[%clk 0:00:32.3]} 38... Bh5 {[%clk
0:00:24]} 39. Kc3 {[%clk 0:00:30.6]} 39... Bg6 {[%clk 0:00:23.5]} 40. Nd3+
{[%clk 0:00:27.2]} 40... Kd6 {[%clk 0:00:24]} 41. Nf2 {[%clk 0:00:25.4]} 41...
Bh5 {[%clk 0:00:24.2]} 42. Nd3 {[%clk 0:00:22.8]} 42... Be2 {[%clk 0:00:22.3]}
43. Ne1 {[%clk 0:00:23.1]} 43... Bd1 {[%clk 0:00:21.4]} 44. g3 {[%clk
0:00:06.7]} 44... Bxa4 {[%clk 0:00:20.8]} 45. Kc4 {[%clk 0:00:07.6]} 45... Bd1
{[%clk 0:00:20.5]} 46. h4 {[%clk 0:00:05.2]} 46... Be2+ {[%clk 0:00:20.6]} 47.
Kc3 {[%clk 0:00:04.8]} 47... Bxb5 {[%clk 0:00:20.8]} 48. Nc2 {[%clk 0:00:05.7]}
48... Bd7 {[%clk 0:00:20.1]} 49. Ne3 {[%clk 0:00:05.9]} 49... Be6 {[%clk
0:00:20.7]} 50. Kd3 {[%clk 0:00:05]} 50... b5 {[%clk 0:00:21.2]} 51. Nc2 {[%clk
0:00:04.6]} 51... b4 {[%clk 0:00:21.6]} 0-1

[Event "Early-Titled-Tuesday-Blitz-December-26-2023"]
[Site "Chess.com"]
[Date "2023.12.26"]
[Round "7"]
[White "tantaan"]
[Black "karinachess1"]
[Result "1/2-1/2"]
[WhiteElo "2481"]
[BlackElo "2571"]
[TimeControl "180+1"]
[EndTime "9:18:01 PST"]
[Termination "Game drawn by repetition"]

1. e4 {[%clk 0:03:00.9]} 1... e5 {[%clk 0:02:59.7]} 2. Nc3 {[%clk 0:03:00.3]}
2... Nf6 {[%clk 0:02:59.4]} 3. Bc4 {[%clk 0:03:00.6]} 3... Be7 {[%clk
0:02:50.5]} 4. d3 {[%clk 0:02:59.6]} 4... O-O {[%clk 0:02:36]} 5. f4 {[%clk
0:02:56.6]} 5... exf4 {[%clk 0:02:27.3]} 6. Bxf4 {[%clk 0:02:54.9]} 6... c6
{[%clk 0:02:27.6]} 7. Nf3 {[%clk 0:02:46.5]} 7... d5 {[%clk 0:02:27.6]} 8. Bb3
{[%clk 0:02:40.2]} 8... dxe4 {[%clk 0:02:22.3]} 9. dxe4 {[%clk 0:02:39.5]} 9...
Qxd1+ {[%clk 0:01:57.2]} 10. Rxd1 {[%clk 0:02:40.4]} 10... Bb4 {[%clk
0:01:44.8]} 11. e5 {[%clk 0:02:33]} 11... Ne4 {[%clk 0:01:34.7]} 12. O-O {[%clk
0:02:23.4]} 12... Nxc3 {[%clk 0:01:22.5]} 13. bxc3 {[%clk 0:02:22.6]} 13... Bxc3
{[%clk 0:01:22.9]} 14. Ng5 {[%clk 0:02:23.2]} 14... Bg4 {[%clk 0:01:09.8]} 15.
Rd3 {[%clk 0:01:39.7]} 15... Be2 {[%clk 0:00:38.2]} 16. Rxc3 {[%clk 0:01:39.1]}
16... Bxf1 {[%clk 0:00:38.2]} 17. Kxf1 {[%clk 0:01:32.5]} 17... h6 {[%clk
0:00:34.2]} 18. Ne4 {[%clk 0:01:27.5]} 18... Na6 {[%clk 0:00:31.8]} 19. Nd6
{[%clk 0:01:23.4]} 19... Rab8 {[%clk 0:00:29.4]} 20. Be3 {[%clk 0:01:16.7]}
20... c5 {[%clk 0:00:19.3]} 21. Bxc5 {[%clk 0:00:57.4]} 21... Nxc5 {[%clk
0:00:19.3]} 22. Rxc5 {[%clk 0:00:58.2]} 22... Kh7 {[%clk 0:00:18.8]} 23. Nxf7
{[%clk 0:00:53.1]} 23... Rbe8 {[%clk 0:00:15.7]} 24. Ke2 {[%clk 0:00:41.8]}
24... Re7 {[%clk 0:00:16.2]} 25. Ke3 {[%clk 0:00:39.9]} 25... b6 {[%clk
0:00:14.2]} 26. Rc6 {[%clk 0:00:30.3]} 26... g6 {[%clk 0:00:08.3]} 27. e6 {[%clk
0:00:29.1]} 27... Rfxf7 {[%clk 0:00:08.2]} 28. Rd6 {[%clk 0:00:19]} 28... Rf5
{[%clk 0:00:06.7]} 29. Rd7 {[%clk 0:00:15.5]} 29... Rxd7 {[%clk 0:00:05.4]} 30.
exd7 {[%clk 0:00:16.4]} 30... Rf8 {[%clk 0:00:06.1]} 31. Kd4 {[%clk 0:00:15]}
31... Kg7 {[%clk 0:00:06.6]} 32. Kd5 {[%clk 0:00:14.9]} 32... Kf6 {[%clk
0:00:07.2]} 33. Kd6 {[%clk 0:00:15.4]} 33... Rd8 {[%clk 0:00:07]} 34. g4 {[%clk
0:00:13.8]} 34... g5 {[%clk 0:00:07.2]} 35. Bd5 {[%clk 0:00:13.6]} 35... Rf8
{[%clk 0:00:06.3]} 36. Be6 {[%clk 0:00:13]} 36... Rd8 {[%clk 0:00:05.9]} 37. c4
{[%clk 0:00:13.4]} 37... Rf8 {[%clk 0:00:05.9]} 38. h3 {[%clk 0:00:13.9]} 38...
Rd8 {[%clk 0:00:06.1]} 39. Bf5 {[%clk 0:00:14]} 39... Rf8 {[%clk 0:00:05.8]} 40.
a4 {[%clk 0:00:13.9]} 40... Rd8 {[%clk 0:00:05.9]} 41. Be6 {[%clk 0:00:10]}
41... Rf8 {[%clk 0:00:06]} 42. Bf5 {[%clk 0:00:10.2]} 42... Rh8 {[%clk
0:00:05.9]} 43. Be4 {[%clk 0:00:09.6]} 43... Rf8 {[%clk 0:00:05.9]} 44. Bb7
{[%clk 0:00:10.2]} 44... Rd8 {[%clk 0:00:05.9]} 45. Bc8 {[%clk 0:00:10.7]} 45...
Rf8 {[%clk 0:00:06.2]} 46. Bb7 {[%clk 0:00:06]} 46... Rd8 {[%clk 0:00:06.3]} 47.
Bd5 {[%clk 0:00:06.1]} 47... Rf8 {[%clk 0:00:06.4]} 48. Be6 {[%clk 0:00:06.2]}
48... Rd8 {[%clk 0:00:06.5]} 49. Bf5 {[%clk 0:00:06.6]} 49... Rf8 {[%clk
0:00:06.8]} 50. Be6 {[%clk 0:00:06.8]} 50... Rh8 {[%clk 0:00:07.1]} 51. Bf5
{[%clk 0:00:06.8]} 51... Rf8 {[%clk 0:00:07.3]} 52. Be6 {[%clk 0:00:07.2]}
1/2-1/2

[Event "Early-Titled-Tuesday-Blitz-December-26-2023"]
[Site "Chess.com"]
[Date "2023.12.26"]
[Round "7"]
[White "Witik"]
[Black "viviania"]
[Result "0-1"]
[WhiteElo "2735"]
[BlackElo "2882"]
[TimeControl "180+1"]
[EndTime "9:18:07 PST"]
[Termination "viviania won by checkmate"]

1. d4 {[%clk 0:02:58]} 1... Nf6 {[%clk 0:02:59]} 2. c4 {[%clk 0:02:58.1]} 2...
e6 {[%clk 0:02:59.3]} 3. g3 {[%clk 0:02:58.3]} 3... c5 {[%clk 0:02:58.6]} 4. d5
{[%clk 0:02:56.8]} 4... exd5 {[%clk 0:02:58.7]} 5. cxd5 {[%clk 0:02:57.7]} 5...
d6 {[%clk 0:02:59]} 6. Nc3 {[%clk 0:02:58.3]} 6... g6 {[%clk 0:02:59.3]} 7. Nf3
{[%clk 0:02:58.8]} 7... Bg7 {[%clk 0:02:59.6]} 8. Bg2 {[%clk 0:02:59.6]} 8...
O-O {[%clk 0:03:00]} 9. O-O {[%clk 0:03:00.3]} 9... Re8 {[%clk 0:03:00.4]} 10.
Bf4 {[%clk 0:03:00.2]} 10... h6 {[%clk 0:03:00.3]} 11. Re1 {[%clk 0:02:53.5]}
11... g5 {[%clk 0:02:56.2]} 12. Bc1 {[%clk 0:02:46.1]} 12... Bf5 {[%clk
0:02:43.8]} 13. Nd2 {[%clk 0:02:44.9]} 13... Nbd7 {[%clk 0:02:42.7]} 14. e4
{[%clk 0:02:41.4]} 14... Bg6 {[%clk 0:02:42.7]} 15. Nc4 {[%clk 0:02:32.7]} 15...
Nb6 {[%clk 0:02:42.1]} 16. Na3 {[%clk 0:02:11.7]} 16... Qd7 {[%clk 0:02:14.9]}
17. f3 {[%clk 0:02:07.4]} 17... Re7 {[%clk 0:01:58.3]} 18. g4 {[%clk 0:01:56.1]}
18... a6 {[%clk 0:01:43.5]} 19. Be3 {[%clk 0:01:42.3]} 19... Qc7 {[%clk
0:01:41.3]} 20. Rc1 {[%clk 0:01:35.4]} 20... Nbd7 {[%clk 0:01:40.4]} 21. Nc2
{[%clk 0:01:22.8]} 21... b5 {[%clk 0:01:34.4]} 22. Bf2 {[%clk 0:01:16.4]} 22...
Nb6 {[%clk 0:01:20.5]} 23. Ne3 {[%clk 0:01:12]} 23... Nfd7 {[%clk 0:01:20.4]}
24. Qd2 {[%clk 0:01:06]} 24... b4 {[%clk 0:01:12.4]} 25. Ne2 {[%clk 0:01:05.8]}
25... a5 {[%clk 0:01:09.1]} 26. Ng3 {[%clk 0:01:03.7]} 26... Ree8 {[%clk
0:01:02.6]} 27. Ngf5 {[%clk 0:01:04.1]} 27... Ne5 {[%clk 0:01:00.3]} 28. Kh1
{[%clk 0:00:55.3]} 28... f6 {[%clk 0:00:54.5]} 29. Bg3 {[%clk 0:00:53.2]} 29...
Bf8 {[%clk 0:00:53.7]} 30. f4 {[%clk 0:00:49.5]} 30... gxf4 {[%clk 0:00:53.1]}
31. Bxf4 {[%clk 0:00:50.4]} 31... Qh7 {[%clk 0:00:48.4]} 32. Rg1 {[%clk
0:00:44.6]} 32... Ra7 {[%clk 0:00:41.9]} 33. Qe2 {[%clk 0:00:33.3]} 33... Kh8
{[%clk 0:00:36.8]} 34. Rcf1 {[%clk 0:00:23.9]} 34... Rc7 {[%clk 0:00:27]} 35. b3
{[%clk 0:00:18.8]} 35... a4 {[%clk 0:00:22.3]} 36. Rf2 {[%clk 0:00:18.6]} 36...
axb3 {[%clk 0:00:20.5]} 37. axb3 {[%clk 0:00:19.5]} 37... Ra7 {[%clk 0:00:18.9]}
38. Bf1 {[%clk 0:00:19.9]} 38... Ra3 {[%clk 0:00:18.5]} 39. Qc2 {[%clk
0:00:17.7]} 39... Rea8 {[%clk 0:00:17.3]} 40. Rg3 {[%clk 0:00:17.4]} 40... Nbd7
{[%clk 0:00:13.5]} 41. Rh3 {[%clk 0:00:17.9]} 41... Nf7 {[%clk 0:00:13.6]} 42.
Nc4 {[%clk 0:00:16.9]} 42... Bxf5 {[%clk 0:00:10.6]} 43. gxf5 {[%clk 0:00:15.3]}
43... Nde5 {[%clk 0:00:10.6]} 44. Rg2 {[%clk 0:00:10.5]} 44... Ng5 {[%clk
0:00:09.2]} 45. Rhg3 {[%clk 0:00:09.9]} 45... Ra2 {[%clk 0:00:08.1]} 46. Qxa2
{[%clk 0:00:09.7]} 46... Rxa2 {[%clk 0:00:07.3]} 47. Rxa2 {[%clk 0:00:10.6]}
47... Nxe4 {[%clk 0:00:07.3]} 48. Rgg2 {[%clk 0:00:11.1]} 48... Qxf5 {[%clk
0:00:06.5]} 49. Ra8 {[%clk 0:00:10.9]} 49... Qxf4 {[%clk 0:00:05.7]} 50. Rxf8+
{[%clk 0:00:10.5]} 50... Kh7 {[%clk 0:00:05.7]} 51. Nxe5 {[%clk 0:00:03.2]}
51... Qxf1+ {[%clk 0:00:05.2]} 52. Rg1 {[%clk 0:00:03.6]} 52... Nf2# {[%clk
0:00:05.4]} 0-1

[Event "Early-Titled-Tuesday-Blitz-December-26-2023"]
[Site "Chess.com"]
[Date "2023.12.26"]
[Round "7"]
[White "matagordo"]
[Black "laskakid"]
[Result "1-0"]
[WhiteElo "2252"]
[BlackElo "2359"]
[TimeControl "180+1"]
[EndTime "9:18:10 PST"]
[Termination "matagordo won on time"]

1. d4 {[%clk 0:02:52]} 1... d5 {[%clk 0:02:59.5]} 2. Bf4 {[%clk 0:02:50.2]} 2...
Nf6 {[%clk 0:02:57.9]} 3. e3 {[%clk 0:02:47.3]} 3... e6 {[%clk 0:02:57.8]} 4.
Nf3 {[%clk 0:02:47.4]} 4... Bd6 {[%clk 0:02:57.8]} 5. Ne5 {[%clk 0:02:48.2]}
5... O-O {[%clk 0:02:50.3]} 6. Nd2 {[%clk 0:02:48.4]} 6... c5 {[%clk 0:02:47.9]}
7. c3 {[%clk 0:02:48.9]} 7... Nc6 {[%clk 0:02:44.4]} 8. Bd3 {[%clk 0:02:48.6]}
8... Qc7 {[%clk 0:02:34.6]} 9. Ndf3 {[%clk 0:02:48.6]} 9... Ne4 {[%clk
0:02:02.6]} 10. O-O {[%clk 0:02:47.3]} 10... Ne7 {[%clk 0:01:58.6]} 11. dxc5
{[%clk 0:01:32.2]} 11... Qxc5 {[%clk 0:01:35.7]} 12. Bc2 {[%clk 0:00:46.8]}
12... f6 {[%clk 0:01:16.7]} 13. Nd3 {[%clk 0:00:46.2]} 13... Qc7 {[%clk
0:01:14.6]} 14. Bxd6 {[%clk 0:00:37.5]} 14... Qxd6 {[%clk 0:01:10.1]} 15. Nb4
{[%clk 0:00:35.8]} 15... Qb6 {[%clk 0:00:51.4]} 16. Bxe4 {[%clk 0:00:30.6]}
16... dxe4 {[%clk 0:00:51.2]} 17. Nd2 {[%clk 0:00:31.3]} 17... a5 {[%clk
0:00:49.3]} 18. Nc2 {[%clk 0:00:26.8]} 18... Qxb2 {[%clk 0:00:43.9]} 19. Nxe4
{[%clk 0:00:26.6]} 19... f5 {[%clk 0:00:42.8]} 20. Nd6 {[%clk 0:00:15.9]} 20...
Qxc3 {[%clk 0:00:41]} 21. Nd4 {[%clk 0:00:16.2]} 21... Rd8 {[%clk 0:00:31.9]}
22. Nxc8 {[%clk 0:00:15.3]} 22... Raxc8 {[%clk 0:00:30.3]} 23. Qh5 {[%clk
0:00:10.5]} 23... g6 {[%clk 0:00:26.6]} 24. Qh4 {[%clk 0:00:10]} 24... Nd5
{[%clk 0:00:17.6]} 25. Nxe6 {[%clk 0:00:10.1]} 25... Re8 {[%clk 0:00:16.6]} 26.
Ng5 {[%clk 0:00:08.9]} 26... Qg7 {[%clk 0:00:15]} 27. Rad1 {[%clk 0:00:08.6]}
27... Nf6 {[%clk 0:00:13.7]} 28. Qh3 {[%clk 0:00:06]} 28... Rcd8 {[%clk
0:00:13.1]} 29. Nf3 {[%clk 0:00:05.8]} 29... Rxd1 {[%clk 0:00:12.7]} 30. Rxd1
{[%clk 0:00:06.7]} 30... Ne4 {[%clk 0:00:12.3]} 31. Qh4 {[%clk 0:00:05.8]} 31...
Qe7 {[%clk 0:00:11.2]} 32. Qf4 {[%clk 0:00:05.6]} 32... Kg7 {[%clk 0:00:10.1]}
33. h4 {[%clk 0:00:05]} 33... Rd8 {[%clk 0:00:09.1]} 34. Re1 {[%clk 0:00:04.5]}
34... Rd3 {[%clk 0:00:08]} 35. h5 {[%clk 0:00:04.4]} 35... Ra3 {[%clk
0:00:06.8]} 36. hxg6 {[%clk 0:00:04.4]} 36... hxg6 {[%clk 0:00:06.8]} 37. Nd4
{[%clk 0:00:03]} 37... Rxa2 {[%clk 0:00:06.2]} 38. f3 {[%clk 0:00:03.1]} 38...
Nc3 {[%clk 0:00:05.4]} 39. Qg3 {[%clk 0:00:03.2]} 39... Rb2 {[%clk 0:00:04.9]}
40. Nxf5+ {[%clk 0:00:03.6]} 40... Kf6 {[%clk 0:00:04.9]} 41. Nxe7 {[%clk
0:00:04.5]} 41... Kxe7 {[%clk 0:00:05.3]} 42. Qxg6 {[%clk 0:00:03.9]} 42... Ne2+
{[%clk 0:00:04.6]} 43. Rxe2 {[%clk 0:00:04]} 43... Rxe2 {[%clk 0:00:04.7]} 44.
Kf1 {[%clk 0:00:04.9]} 44... Rb2 {[%clk 0:00:03.5]} 45. Qg7+ {[%clk 0:00:05.2]}
45... Kd6 {[%clk 0:00:03.1]} 46. Qxb2 {[%clk 0:00:06.1]} 46... Kc6 {[%clk
0:00:03.2]} 47. Qa3 {[%clk 0:00:05.9]} 47... b6 {[%clk 0:00:03]} 48. g4 {[%clk
0:00:06.6]} 48... Kb7 {[%clk 0:00:03.1]} 49. g5 {[%clk 0:00:07.3]} 49... Ka6
{[%clk 0:00:03.6]} 50. g6 {[%clk 0:00:08]} 50... b5 {[%clk 0:00:04.2]} 51. g7
{[%clk 0:00:08.5]} 51... b4 {[%clk 0:00:04.8]} 52. g8=Q {[%clk 0:00:09.2]} 52...
bxa3 {[%clk 0:00:03.6]} 53. Qb3 {[%clk 0:00:09.7]} 53... a4 {[%clk 0:00:02.9]}
54. Qxa4+ {[%clk 0:00:09.3]} 54... Kb6 {[%clk 0:00:03.3]} 55. Qxa3 {[%clk
0:00:10.2]} 55... Kb5 {[%clk 0:00:03]} 56. Qd3+ {[%clk 0:00:10.7]} 1-0

[Event "Early-Titled-Tuesday-Blitz-December-26-2023"]
[Site "Chess.com"]
[Date "2023.12.26"]
[Round "7"]
[White "Herzog2012"]
[Black "sokidze"]
[Result "1/2-1/2"]
[WhiteElo "2556"]
[BlackElo "2774"]
[TimeControl "180+1"]
[EndTime "9:18:18 PST"]
[Termination "Game drawn - insufficient material"]

1. e4 {[%clk 0:03:00.9]} 1... c6 {[%clk 0:02:57.3]} 2. d4 {[%clk 0:02:57.9]}
2... d5 {[%clk 0:02:57.8]} 3. e5 {[%clk 0:02:48.9]} 3... Bf5 {[%clk 0:02:57.7]}
4. Nf3 {[%clk 0:02:49.2]} 4... e6 {[%clk 0:02:57.5]} 5. Be2 {[%clk 0:02:49.6]}
5... c5 {[%clk 0:02:58.1]} 6. Be3 {[%clk 0:02:48.8]} 6... Qb6 {[%clk 0:02:57.9]}
7. Nc3 {[%clk 0:02:42.8]} 7... Nc6 {[%clk 0:02:58.2]} 8. O-O {[%clk 0:02:41.5]}
8... Qxb2 {[%clk 0:02:58.7]} 9. Qe1 {[%clk 0:02:40.8]} 9... cxd4 {[%clk
0:02:58.9]} 10. Bxd4 {[%clk 0:02:39.8]} 10... Nxd4 {[%clk 0:02:59.5]} 11. Nxd4
{[%clk 0:02:38.9]} 11... Bb4 {[%clk 0:03:00.2]} 12. Rb1 {[%clk 0:02:38.7]} 12...
Bxc3 {[%clk 0:02:55.1]} 13. Rxb2 {[%clk 0:02:38.5]} 13... Bxe1 {[%clk
0:02:55.8]} 14. Rxe1 {[%clk 0:02:38.2]} 14... b6 {[%clk 0:02:56.6]} 15. h4
{[%clk 0:02:37]} 15... h5 {[%clk 0:02:51]} 16. Nxf5 {[%clk 0:02:36.6]} 16...
exf5 {[%clk 0:02:51.3]} 17. c4 {[%clk 0:02:33.7]} 17... Ne7 {[%clk 0:02:30]} 18.
Rd2 {[%clk 0:02:24]} 18... O-O-O {[%clk 0:01:56.5]} 19. Red1 {[%clk 0:02:14.5]}
19... dxc4 {[%clk 0:01:31.7]} 20. Bxc4 {[%clk 0:02:09.4]} 20... Ng6 {[%clk
0:01:00.7]} 21. Bxf7 {[%clk 0:01:26.4]} 21... Nxe5 {[%clk 0:01:00]} 22. Be6+
{[%clk 0:01:26.2]} 22... Kc7 {[%clk 0:01:00.4]} 23. Bxf5 {[%clk 0:01:20.9]}
23... Rxd2 {[%clk 0:00:47]} 24. Rxd2 {[%clk 0:01:19.9]} 24... Rd8 {[%clk
0:00:47.5]} 25. Rxd8 {[%clk 0:00:53.2]} 25... Kxd8 {[%clk 0:00:48.4]} 26. f4
{[%clk 0:00:53]} 26... Nd7 {[%clk 0:00:45.7]} 27. Kf2 {[%clk 0:00:46.9]} 27...
Nf6 {[%clk 0:00:42.8]} 28. Ke3 {[%clk 0:00:44.9]} 28... Nd5+ {[%clk 0:00:31.7]}
29. Kf3 {[%clk 0:00:29]} 29... Ke7 {[%clk 0:00:31]} 30. Bg6 {[%clk 0:00:29]}
30... Nc3 {[%clk 0:00:29.6]} 31. a3 {[%clk 0:00:20.9]} 31... Nb5 {[%clk
0:00:28.9]} 32. Bxh5 {[%clk 0:00:18.6]} 32... Nxa3 {[%clk 0:00:29]} 33. Ke4
{[%clk 0:00:18.4]} 33... b5 {[%clk 0:00:26.6]} 34. Kd4 {[%clk 0:00:15.4]} 34...
b4 {[%clk 0:00:24.3]} 35. Bd1 {[%clk 0:00:14.1]} 35... Kd6 {[%clk 0:00:20.2]}
36. g4 {[%clk 0:00:14.4]} 36... a5 {[%clk 0:00:17]} 37. g5 {[%clk 0:00:12.7]}
37... Nb5+ {[%clk 0:00:11.6]} 38. Kc4 {[%clk 0:00:12.3]} 38... Nc3 {[%clk
0:00:08.8]} 39. Bc2 {[%clk 0:00:12.2]} 39... Nd5 {[%clk 0:00:07]} 40. Kb5 {[%clk
0:00:03.7]} 40... Nxf4 {[%clk 0:00:04.8]} 41. Kxa5 {[%clk 0:00:04.1]} 41... Kc5
{[%clk 0:00:05.1]} 42. Bb3 {[%clk 0:00:03.2]} 42... Nh5 {[%clk 0:00:03.5]} 43.
Bd1 {[%clk 0:00:02.9]} 43... Ng3 {[%clk 0:00:02.5]} 44. h5 {[%clk 0:00:03.2]}
44... Ne4 {[%clk 0:00:02.1]} 45. h6 {[%clk 0:00:02.9]} 45... gxh6 {[%clk
0:00:03]} 46. gxh6 {[%clk 0:00:03.8]} 46... Nf6 {[%clk 0:00:03.7]} 47. Bc2
{[%clk 0:00:04.1]} 47... Kc4 {[%clk 0:00:04.2]} 48. h7 {[%clk 0:00:04.5]} 48...
Nxh7 {[%clk 0:00:04.7]} 49. Bxh7 {[%clk 0:00:05.4]} 49... b3 {[%clk 0:00:04.7]}
50. Bg8+ {[%clk 0:00:05.2]} 50... Kc3 {[%clk 0:00:04.7]} 51. Bxb3 {[%clk
0:00:06.1]} 1/2-1/2

[Event "Early-Titled-Tuesday-Blitz-December-26-2023"]
[Site "Chess.com"]
[Date "2023.12.26"]
[Round "7"]
[White "Artyom_ChessMate"]
[Black "elchacal664"]
[Result "1-0"]
[WhiteElo "2511"]
[BlackElo "2299"]
[TimeControl "180+1"]
[EndTime "9:18:18 PST"]
[Termination "Artyom_ChessMate won by resignation"]

1. e4 {[%clk 0:03:00.9]} 1... c5 {[%clk 0:02:57.9]} 2. Nf3 {[%clk 0:02:59.9]}
2... e6 {[%clk 0:02:55.4]} 3. c3 {[%clk 0:02:57.5]} 3... a6 {[%clk 0:02:54.7]}
4. d4 {[%clk 0:02:37.9]} 4... cxd4 {[%clk 0:02:54]} 5. cxd4 {[%clk 0:02:38.8]}
5... d6 {[%clk 0:02:54.2]} 6. Nc3 {[%clk 0:02:38.6]} 6... g6 {[%clk 0:02:53.8]}
7. g3 {[%clk 0:02:39.2]} 7... Bg7 {[%clk 0:02:54]} 8. Bg2 {[%clk 0:02:38.1]}
8... Ne7 {[%clk 0:02:54.6]} 9. O-O {[%clk 0:02:38.1]} 9... O-O {[%clk
0:02:55.1]} 10. Re1 {[%clk 0:02:36.3]} 10... Nbc6 {[%clk 0:02:52.7]} 11. Be3
{[%clk 0:02:35.4]} 11... d5 {[%clk 0:02:52.5]} 12. e5 {[%clk 0:02:27]} 12... Nf5
{[%clk 0:02:52.8]} 13. Qd2 {[%clk 0:02:26]} 13... Nxe3 {[%clk 0:02:47.6]} 14.
fxe3 {[%clk 0:02:22.2]} 14... Bh6 {[%clk 0:02:45.7]} 15. Qd3 {[%clk 0:02:21.8]}
15... Nb4 {[%clk 0:02:40.6]} 16. Qe2 {[%clk 0:02:21.6]} 16... Bd7 {[%clk
0:02:37.7]} 17. a3 {[%clk 0:02:19]} 17... Nc6 {[%clk 0:02:33.4]} 18. e4 {[%clk
0:02:19.3]} 18... Qb6 {[%clk 0:02:12.2]} 19. Rad1 {[%clk 0:02:15.9]} 19... Ne7
{[%clk 0:02:06.2]} 20. exd5 {[%clk 0:02:02.6]} 20... Nxd5 {[%clk 0:01:58.5]} 21.
Ne4 {[%clk 0:02:02.7]} 21... Bb5 {[%clk 0:01:48.8]} 22. Qf2 {[%clk 0:01:57.3]}
22... Rac8 {[%clk 0:01:43.3]} 23. Nd6 {[%clk 0:01:51.8]} 23... Rc6 {[%clk
0:01:35.4]} 24. h4 {[%clk 0:01:50.1]} 24... Ba4 {[%clk 0:01:25.6]} 25. Rd3
{[%clk 0:01:38.2]} 25... Rc2 {[%clk 0:01:21.6]} 26. Re2 {[%clk 0:01:38.5]} 26...
Rxe2 {[%clk 0:01:19.7]} 27. Qxe2 {[%clk 0:01:37.8]} 27... Bb5 {[%clk 0:01:13.2]}
28. Nxb5 {[%clk 0:01:35.3]} 28... Qxb5 {[%clk 0:01:14.1]} 29. Ng5 {[%clk
0:01:33.8]} 29... Bxg5 {[%clk 0:00:58]} 30. hxg5 {[%clk 0:01:34.7]} 30... Rc8
{[%clk 0:00:57.3]} 31. Qd2 {[%clk 0:01:27.9]} 31... Rc7 {[%clk 0:00:35]} 32. Bf1
{[%clk 0:01:25.4]} 32... Qc6 {[%clk 0:00:33.2]} 33. Bg2 {[%clk 0:01:14.6]} 33...
Qc1+ {[%clk 0:00:31.2]} 34. Kh2 {[%clk 0:01:08.8]} 34... Qxd2 {[%clk 0:00:22.5]}
35. Rxd2 {[%clk 0:01:09.7]} 35... Nb6 {[%clk 0:00:22.2]} 36. Kg1 {[%clk
0:01:06.7]} 36... Rd7 {[%clk 0:00:22]} 37. Bf1 {[%clk 0:01:00.4]} 37... Nd5
{[%clk 0:00:20.4]} 38. Kf2 {[%clk 0:00:57.2]} 38... Ne7 {[%clk 0:00:19.6]} 39.
g4 {[%clk 0:00:54.7]} 39... Nc6 {[%clk 0:00:19.4]} 40. Ke3 {[%clk 0:00:54.7]}
40... Rc7 {[%clk 0:00:18.1]} 41. Rc2 {[%clk 0:00:52]} 41... Rc8 {[%clk
0:00:17.7]} 42. Bg2 {[%clk 0:00:51.2]} 42... Rc7 {[%clk 0:00:16]} 43. Bxc6
{[%clk 0:00:39.6]} 43... bxc6 {[%clk 0:00:16.9]} 44. b4 {[%clk 0:00:39.6]} 44...
Kf8 {[%clk 0:00:16.5]} 45. Rc5 {[%clk 0:00:39.8]} 45... Ke7 {[%clk 0:00:16.3]}
46. Ra5 {[%clk 0:00:38.4]} 46... Ra7 {[%clk 0:00:16]} 47. Kd3 {[%clk 0:00:39]}
47... Kd7 {[%clk 0:00:16.4]} 48. Kc4 {[%clk 0:00:39.5]} 48... Kc7 {[%clk
0:00:16.9]} 49. Rc5 {[%clk 0:00:38.7]} 49... Kb6 {[%clk 0:00:16.7]} 50. a4
{[%clk 0:00:38.5]} 50... a5 {[%clk 0:00:16.9]} 51. Rxa5 {[%clk 0:00:36.2]} 51...
Rxa5 {[%clk 0:00:17.8]} 52. bxa5+ {[%clk 0:00:37.1]} 52... Kxa5 {[%clk
0:00:15.2]} 53. Kc5 {[%clk 0:00:37.7]} 53... Kxa4 {[%clk 0:00:15.9]} 54. Kxc6
{[%clk 0:00:38.3]} 54... Kb4 {[%clk 0:00:16.4]} 55. d5 {[%clk 0:00:25.5]} 55...
exd5 {[%clk 0:00:16.2]} 56. Kxd5 {[%clk 0:00:26.4]} 56... Kb5 {[%clk 0:00:14.8]}
57. e6 {[%clk 0:00:22.2]} 57... fxe6+ {[%clk 0:00:15.3]} 58. Kxe6 {[%clk
0:00:23.1]} 58... Kc5 {[%clk 0:00:15.6]} 59. Kf6 {[%clk 0:00:23.7]} 59... Kd5
{[%clk 0:00:15.4]} 60. Kg7 {[%clk 0:00:23.2]} 60... Ke6 {[%clk 0:00:13.4]} 61.
Kxh7 {[%clk 0:00:23.4]} 61... Kf7 {[%clk 0:00:10.4]} 62. Kh6 {[%clk 0:00:24]}
62... Kf8 {[%clk 0:00:10.2]} 63. Kxg6 {[%clk 0:00:24.9]} 63... Kg8 {[%clk
0:00:10.6]} 64. Kh6 {[%clk 0:00:24.4]} 64... Kh8 {[%clk 0:00:10.9]} 65. g6
{[%clk 0:00:22.7]} 65... Kg8 {[%clk 0:00:10.9]} 66. g7 {[%clk 0:00:23.1]} 66...
Kf7 {[%clk 0:00:09.2]} 67. Kh7 {[%clk 0:00:22]} 67... Kf6 {[%clk 0:00:09.2]} 68.
g8=Q {[%clk 0:00:21.3]} 1-0